bitfinex-derivatives/quotes_BNBF0:USTF0_20250509
["timestamp","ask_amount","ask_price","bid_price","bid_amount"]
[1746827131280,0.26015933,640.44,639.06,0.31295965]
[1746827131885,0.26015933,640.46,639.06,0.31295965]
[1746827132087,0.27200994,640.43,639.06,0.31295965]
[1746827132582,0.26015933,640.42,639.06,0.31295965]
[1746827132989,0.698,640.41,639.06,0.31295965]
[1746827133387,0.26015933,640.4,639.06,0.31295965]
[1746827134986,0.27203227,640.39,639.06,0.31295965]
[1746827135290,0.26015933,640.38,639.06,0.31295965]
[1746827137990,0.27201632,640.37,639.06,0.31295965]
[1746827138491,0.26015933,640.36,639.06,0.31295965]
[1746827140887,0.26015933,640.4,639.06,0.31295965]
[1746827141089,0.27201632,640.35,639.06,0.31295965]
[1746827141693,0.26013558,640.34,639.06,0.31295965]
[1746827144995,0.27201632,640.35,639.06,0.31295965]
[1746827145393,0.26013458,640.34,639.06,0.31295965]
[1746827145689,0.26013458,640.33,639.06,0.31295965]
[1746827145996,0.26013458,640.34,639.06,0.31295965]
[1746827146595,0.27201632,640.35,639.06,0.31295965]
[1746827146896,0.698,640.41,639.06,0.31295965]
[1746827147094,0.53215129,640.34,639.06,0.31295965]
[1746827147395,0.26013497,640.33,639.06,0.31295965]
[1746827148096,0.27201632,640.34,639.06,0.31295965]
[1746827148601,0.26013524,640.33,639.06,0.31295965]
[1746827150092,0.27206204,640.32,639.06,0.31295965]
[1746827150693,0.26013524,640.31,639.06,0.31295965]
[1746827151697,0.26013524,640.31,639.06,0.72795965]
[1746827153001,0.27201526,640.3,639.06,0.72795965]
[1746827153201,0.26013524,640.29,639.06,0.72795965]
[1746827155997,0.5321505,640.28,639.06,0.72795965]
[1746827156602,0.26013524,640.27,639.06,0.72795965]
[1746827158205,0.27201526,640.28,639.06,0.72795965]
[1746827158505,0.26013451,640.27,639.06,0.72795965]
[1746827164906,0.26013451,640.36,639.06,0.72795965]
[1746827165112,0.2720344,640.26,639.06,0.72795965]
[1746827165312,0.26013451,640.36,639.06,0.72795965]
[1746827166008,0.508,640.35,639.06,0.72795965]
[1746827166513,0.26013451,640.34,639.06,0.72795965]
[1746827166808,0.53216997,640.34,639.06,0.72795965]
[1746827167111,0.26013451,640.33,639.06,0.72795965]
[1746827168014,0.27203652,640.32,639.06,0.72795965]
[1746827168512,0.26013451,640.31,639.06,0.72795965]
[1746827169114,0.27203652,640.32,639.06,0.72795965]
[1746827169414,0.26008992,640.31,639.06,0.72795965]
[1746827174015,0.508,640.35,639.06,0.72795965]
[1746827174016,0.26008992,640.34,639.06,0.72795965]
[1746827174215,0.2720429,640.3,639.06,0.72795965]
[1746827174813,0.26008992,640.29,639.06,0.72795965]
[1746827177018,0.2720429,640.28,639.06,0.72795965]
[1746827177217,0.26008992,640.27,639.06,0.72795965]
[1746827178919,0.26008992,640.26,639.06,0.72795965]
[1746827179119,0.26008992,640.25,639.06,0.72795965]
[1746827179323,0.26008992,640.24,639.06,0.72795965]
[1746827179514,0.2720429,640.28,639.06,0.72795965]
[1746827179713,0.508,640.35,639.06,0.72795965]
[1746827179910,0.53206578,640.27,639.06,0.72795965]
[1746827180116,0.2720429,640.27,639.06,0.72795965]
[1746827180318,0.26002288,640.26,639.06,0.72795965]
[1746827180513,0.26002288,640.25,639.06,0.72795965]
[1746827180716,0.26002288,640.24,639.06,0.72795965]
[1746827180916,0.26002288,640.23,639.06,0.72795965]
[1746827181215,0.26002288,640.22,639.06,0.72795965]
[1746827181417,0.26002288,640.21,639.06,0.72795965]
[1746827181618,0.26002288,640.2,639.06,0.72795965]
[1746827182012,0.26002288,640.19,639.06,0.72795965]
[1746827182318,0.26002288,640.18,639.06,0.72795965]
[1746827182511,0.26002288,640.17,639.06,0.72795965]
[1746827182916,0.26002288,640.16,639.06,0.72795965]
[1746827183115,0.53206578,640.16,639.06,0.72795965]
[1746827183414,0.26002288,640.15,639.06,0.72795965]
[1746827186019,0.2720429,640.14,639.06,0.72795965]
[1746827186718,0.26002288,640.13,639.06,0.72795965]
[1746827189019,0.26002288,640.39,639.06,0.72795965]
[1746827189215,0.27203758,640.13,639.06,0.72795965]
[1746827189418,0.26002288,640.38,639.06,0.72795965]
[1746827189618,0.26002288,640.12,639.06,0.72795965]
[1746827190119,0.655,640.37,639.06,0.72795965]
[1746827190321,0.26002288,640.36,639.06,0.72795965]
[1746827190516,0.26002288,640.35,639.06,0.72795965]
[1746827190721,0.53206365,640.35,639.06,0.72795965]
[1746827190917,0.26002288,640.34,639.06,0.72795965]
[1746827191122,0.27204077,640.35,639.06,0.72795965]
[1746827191522,0.26002353,640.34,639.06,0.72795965]
[1746827191822,0.26002353,640.33,639.06,0.72795965]
[1746827192122,0.26002353,640.32,639.06,0.72795965]
[1746827192516,0.26002353,640.31,639.06,0.72795965]
[1746827192919,0.26002353,640.3,639.06,0.72795965]
[1746827193621,0.26002353,640.29,639.06,0.72795965]
[1746827194122,0.26002353,640.28,639.06,0.72795965]
[1746827194622,0.26002353,640.34,639.06,0.72795965]
[1746827195017,0.27204184,640.27,639.06,0.72795965]
[1746827195422,0.26002353,640.26,639.06,0.72795965]
[1746827198125,0.27204077,640.25,639.06,0.72795965]
[1746827198726,0.26002353,640.24,639.06,0.72795965]
[1746827201025,0.27204077,640.23,639.06,0.72795965]
[1746827201525,0.26002353,640.22,639.06,0.72795965]
[1746827203938,0.26002353,640.36,639.06,0.72795965]
[1746827204235,0.27204077,640.21,639.06,0.72795965]
[1746827204535,0.26002353,640.36,639.06,0.72795965]
[1746827204835,0.26002353,640.2,639.06,0.72795965]
[1746827205036,0.26002353,640.35,639.06,0.72795965]
[1746827205231,0.26002353,640.36,639.06,0.72795965]
[1746827205633,0.27204077,640.35,639.06,0.72795965]
[1746827206037,0.26002353,640.34,639.06,0.72795965]
[1746827206938,0.26002353,640.36,639.06,0.72795965]
[1746827207139,0.27204077,640.33,639.06,0.72795965]
[1746827207638,0.26002353,640.32,639.06,0.72795965]
[1746827210037,0.27203014,640.31,639.06,0.72795965]
[1746827210241,0.26002353,640.3,639.06,0.72795965]
[1746827213143,0.27204609,640.29,639.06,0.72795965]
[1746827213540,0.26002353,640.28,639.06,0.72795965]
[1746827216046,0.27205673,640.27,639.06,0.72795965]
[1746827216446,0.26002353,640.26,639.06,0.72795965]
[1746827218447,0.27205673,640.27,639.06,0.72795965]
[1746827218745,0.386,640.32,639.06,0.72795965]
[1746827218947,0.2600434,640.26,639.06,0.72795965]
[1746827219247,0.53208417,640.31,639.06,0.72795965]
[1746827219547,0.2600434,640.3,639.06,0.72795965]
[1746827221943,0.2600434,640.31,639.06,0.72795965]
[1746827222150,0.27205673,640.29,639.06,0.72795965]
[1746827222644,0.2600434,640.28,639.06,0.72795965]
[1746827223542,0.2600434,640.27,639.06,0.72795965]
[1746827223848,0.2600434,640.26,639.06,0.72795965]
[1746827224148,0.2600434,640.25,639.06,0.72795965]
[1746827224449,0.2600434,640.28,639.06,0.72795965]
[1746827224750,0.2600434,640.27,639.06,0.72795965]
[1746827225050,0.2600434,640.26,639.06,0.72795965]
[1746827225246,0.53210013,640.26,639.06,0.72795965]
[1746827225445,0.27205673,640.26,639.06,0.72795965]
[1746827225849,0.2600434,640.25,639.06,0.72795965]
[1746827226250,0.2600434,640.24,639.06,0.72795965]
[1746827226652,0.2600434,640.25,639.06,0.72795965]
[1746827227451,0.2600434,640.24,639.06,0.72795965]
[1746827227947,0.53210013,640.23,639.06,0.72795965]
[1746827228450,0.2600434,640.22,639.06,0.72795965]
[1746827228851,0.2600434,640.21,639.06,0.72795965]
[1746827229254,0.2600434,640.2,639.06,0.72795965]
[1746827229752,0.2600434,640.19,639.06,0.72795965]
[1746827230053,0.2600434,640.18,639.06,0.72795965]
[1746827230453,0.2600434,640.17,639.06,0.72795965]
[1746827230953,0.2600434,640.16,639.06,0.72795965]
[1746827231155,0.53210013,640.16,639.06,0.72795965]
[1746827231354,0.2600434,640.15,639.06,0.72795965]
[1746827234356,0.27205673,640.14,639.06,0.72795965]
[1746827234754,0.2600434,640.13,639.06,0.72795965]
[1746827236958,0.2600434,640.31,639.06,0.72795965]
[1746827237152,0.27205673,640.12,639.06,0.72795965]
[1746827237354,0.2600434,640.31,639.06,0.72795965]
[1746827237759,0.2600434,640.46,639.06,0.72795965]
[1746827237960,0.31228042,640.45,639.06,0.72795965]
[1746827238454,0.2600434,640.44,639.06,0.72795965]
[1746827238659,0.31229018,640.43,639.06,0.72795965]
[1746827239659,0.25992256,640.42,639.06,0.72795965]
[1746827239860,0.31229993,640.41,639.06,0.72795965]
[1746827240055,0.25992256,640.4,639.06,0.72795965]
[1746827240260,0.31230968,640.39,639.06,0.72795965]
[1746827240759,0.64992256,640.38,639.06,0.72795965]
[1746827241060,0.31231944,640.37,639.06,0.72795965]
[1746827241260,0.572242,640.37,639.06,0.72795965]
[1746827241558,0.25992256,640.36,639.06,0.72795965]
[1746827241763,0.31232919,640.35,639.06,0.72795965]
[1746827242359,0.25992256,640.34,639.06,0.72795965]
[1746827243361,0.27205354,640.33,639.06,0.72795965]
[1746827243961,0.25992593,640.32,639.06,0.72795965]
[1746827248966,0.27205354,640.31,639.06,0.72795965]
[1746827249266,0.25992593,640.3,639.06,0.72795965]
[1746827252067,0.27205354,640.29,639.06,0.72795965]
[1746827252367,0.25992593,640.28,639.06,0.72795965]
[1746827258172,0.27205354,640.27,639.06,0.72795965]
[1746827258666,0.25992593,640.26,639.06,0.72795965]
[1746827267375,0.439,640.25,639.06,0.72795965]
[1746827267980,0.25992593,640.24,639.06,0.72795965]
[1746827273180,0.439,640.25,639.06,0.72795965]
[1746827273483,0.25992208,640.24,639.06,0.72795965]
[1746827278982,0.27205779,640.23,639.06,0.72795965]
[1746827279180,0.25992208,640.22,639.06,0.72795965]
[1746827282089,0.27204715,640.21,639.06,0.72795965]
[1746827282588,0.25992208,640.2,639.06,0.72795965]
[1746827284493,0.83292208,640.2,639.06,0.72795965]
[1746827284791,0.25992208,640.19,639.06,0.72795965]
[1746827288293,0.27206311,640.18,639.06,0.72795965]
[1746827288795,0.25997372,640.17,639.06,0.72795965]
[1746827291094,0.27206311,640.16,639.06,0.72795965]
[1746827291393,0.25997372,640.15,639.06,0.72795965]
[1746827294201,0.27206311,640.14,639.06,0.72795965]
[1746827294394,0.25997372,640.13,639.06,0.72795965]
[1746827297201,0.27206311,640.12,639.06,0.72795965]
[1746827297397,0.53203683,640.12,639.06,0.72795965]
[1746827297801,0.25997372,640.11,639.06,0.72795965]
[1746827300003,0.25997372,640.19,639.06,0.72795965]
[1746827300197,0.27206311,640.11,639.06,0.72795965]
[1746827300397,0.25997372,640.19,639.06,0.72795965]
[1746827301804,0.27206311,640.18,639.06,0.72795965]
[1746827302203,0.25997372,640.17,639.06,0.72795965]
[1746827303303,0.25997372,640.19,639.06,0.72795965]
[1746827303503,0.27206311,640.16,639.06,0.72795965]
[1746827304203,0.25997372,640.15,639.06,0.72795965]
[1746827305906,0.573,640.2,639.06,0.72795965]
[1746827306102,0.27206311,640.14,639.06,0.72795965]
[1746827306407,0.53204067,640.14,639.06,0.72795965]
[1746827306605,0.27206311,640.14,639.06,0.72795965]
[1746827307005,0.25997756,640.13,639.06,0.72795965]
[1746827309106,0.25997756,640.19,639.06,0.72795965]
[1746827309307,0.27206311,640.12,639.06,0.72795965]
[1746827309808,0.25997756,640.11,639.06,0.72795965]
[1746827312909,0.27206311,640.12,639.06,0.72795965]
[1746827313310,0.2599777,640.11,639.06,0.72795965]
[1746827315005,0.2599777,640.34,639.06,0.72795965]
[1746827315207,0.27204715,640.11,639.06,0.72795965]
[1746827315412,0.2599777,640.34,639.06,0.72795965]
[1746827316313,0.2599777,640.33,639.06,0.72795965]
[1746827316710,0.2599777,640.32,639.06,0.72795965]
[1746827318115,0.2599777,640.31,639.06,0.72795965]
[1746827318311,0.53202485,640.31,639.06,0.72795965]
[1746827318514,0.7249777,640.3,639.06,0.72795965]
[1746827318715,0.2599777,640.29,639.06,0.72795965]
[1746827321119,0.27205247,640.28,639.06,0.72795965]
[1746827321520,0.26000062,640.27,639.06,0.72795965]
[1746827322222,0.27205247,640.28,639.06,0.72795965]
[1746827322822,0.26000088,640.27,639.06,0.72795965]
[1746827324123,0.26000088,640.29,639.06,0.72795965]
[1746827324324,0.27205247,640.26,639.06,0.72795965]
[1746827324625,0.26000088,640.25,639.06,0.72795965]
[1746827327223,0.27205247,640.24,639.06,0.72795965]
[1746827327628,0.26000088,640.23,639.06,0.72795965]
[1746827329325,0.27205247,640.24,639.06,0.72795965]
[1746827329730,0.25999655,640.23,639.06,0.72795965]
[1746827330128,0.27205247,640.23,639.06,0.72795965]
[1746827330529,0.25999655,640.22,639.06,0.72795965]
[1746827334734,0.27205247,640.23,639.06,0.72795965]
[1746827335233,0.25999931,640.22,639.06,0.72795965]
[1746827336233,0.465,640.3,639.06,0.72795965]
[1746827336430,0.27205247,640.21,639.06,0.72795965]
[1746827336734,0.25999877,640.29,639.06,0.72795965]
[1746827337934,0.27205247,640.28,639.06,0.72795965]
[1746827338234,0.25999877,640.27,639.06,0.72795965]
[1746827339236,0.27205247,640.26,639.06,0.72795965]
[1746827339836,0.25999877,640.25,639.06,0.72795965]
[1746827343139,0.379,640.24,639.06,0.72795965]
[1746827343737,0.25999556,640.23,639.06,0.72795965]
[1746827344638,0.379,640.24,639.06,0.72795965]
[1746827345440,0.53204684,640.23,639.06,0.72795965]
[1746827345941,0.25999969,640.22,639.06,0.72795965]
[1746827346842,0.25999969,640.21,639.06,0.72795965]
[1746827347142,0.25999969,640.2,639.06,0.72795965]
[1746827347442,0.25999969,640.19,639.06,0.72795965]
[1746827347741,0.25999969,640.18,639.06,0.72795965]
[1746827348140,0.27205885,640.17,639.06,0.72795965]
[1746827348341,0.53205854,640.17,639.06,0.72795965]
[1746827348638,0.25999969,640.16,639.06,0.72795965]
[1746827350645,0.27205885,640.17,639.06,0.72795965]
[1746827350845,0.379,640.24,639.06,0.72795965]
[1746827351044,0.25999895,640.16,639.06,0.72795965]
[1746827351341,0.5320578,640.16,639.06,0.72795965]
[1746827351545,0.27205885,640.16,639.06,0.72795965]
[1746827352145,0.25999895,640.15,639.06,0.72795965]
[1746827354250,0.27205885,640.14,639.06,0.72795965]
[1746827354750,0.25999895,640.13,639.06,0.72795965]
[1746827357153,0.27205885,640.12,639.06,0.72795965]
[1746827357850,0.25999895,640.11,639.06,0.72795965]
[1746827360156,0.27205885,640.11,639.06,0.72795965]
[1746827360654,0.25999895,640.1,639.06,0.72795965]
[1746827363559,0.27205885,640.11,639.06,0.72795965]
[1746827363958,0.25999895,640.1,639.06,0.72795965]
[1746827366360,0.27205885,640.11,639.06,0.72795965]
[1746827366560,0.25999895,640.1,639.06,0.72795965]
[1746827368061,0.27205885,640.11,639.06,0.72795965]
[1746827368563,0.25999397,640.1,639.06,0.72795965]
[1746827372669,0.458,640.09,639.06,0.72795965]
[1746827373069,0.25999397,640.08,639.06,0.72795965]
[1746827389984,0.25999397,640.1,639.06,0.72795965]
[1746827392686,0.687,640.09,639.06,0.72795965]
[1746827393290,0.25999397,640.08,639.06,0.72795965]
[1746827397288,0.687,640.09,639.06,0.72795965]
[1746827397791,0.26005928,640.08,639.06,0.72795965]
[1746827409391,0.26005928,640.1,639.06,0.72795965]
[1746827412292,0.624,640.09,639.06,0.72795965]
[1746827412894,0.26005928,640.08,639.06,0.72795965]
[1746827414992,0.624,640.09,639.06,0.72795965]
[1746827415294,0.25990064,640.08,639.06,0.72795965]
[1746827419395,0.624,640.09,639.06,0.72795965]
[1746827419798,0.25990111,640.08,639.06,0.72795965]
[1746827422196,0.624,640.09,639.06,0.72795965]
[1746827422498,0.25990093,640.08,639.06,0.72795965]
[1746827434502,0.624,640.09,639.06,0.72795965]
[1746827434805,0.25990233,640.08,639.06,0.72795965]
[1746827438808,0.25990233,640.1,639.06,0.72795965]
[1746827440911,0.31232919,640.35,639.06,0.72795965]
[1746827441210,0.27204715,640.11,639.06,0.72795965]
[1746827441505,0.25990281,640.34,639.06,0.72795965]
[1746827441707,0.25990281,640.1,639.06,0.72795965]
[1746827441907,0.72290281,640.1,639.06,0.72795965]
[1746827442310,0.463,640.1,639.06,0.72795965]
[1746827442907,0.25990281,640.09,639.06,0.72795965]
[1746827445212,0.463,640.1,639.06,0.72795965]
[1746827445612,0.25987691,640.09,639.06,0.72795965]
[1746827457125,0.463,640.1,639.06,0.72795965]
[1746827457527,0.25996369,640.09,639.06,0.72795965]
[1746827460332,0.463,640.1,639.06,0.72795965]
[1746827460732,0.25996354,640.09,639.06,0.72795965]
[1746827461531,0.25996354,640.1,639.06,0.72795965]
[1746827462332,0.27204715,640.11,639.06,0.72795965]
[1746827462532,0.25996354,640.1,639.06,0.72795965]
[1746827462734,0.27204715,640.11,639.06,0.72795965]
[1746827463034,0.25996437,640.1,639.06,0.72795965]
[1746827464828,0.378,640.09,639.06,0.72795965]
[1746827465229,0.25996437,640.08,639.06,0.72795965]
[1746827467630,0.378,640.09,639.06,0.72795965]
[1746827483544,0.2599636,640.08,639.06,0.72795965]
[1746827489543,0.27203865,640.28,639.06,0.72795965]
[1746827489844,0.2599636,640.27,639.06,0.72795965]
[1746827491749,0.495,640.26,639.06,0.72795965]
[1746827492250,0.2599636,640.25,639.06,0.72795965]
[1746827510361,0.27203121,640.24,639.06,0.72795965]
[1746827510961,0.2599636,640.23,639.06,0.72795965]
[1746827513363,0.27203121,640.23,639.06,0.72795965]
[1746827513665,0.2599636,640.22,639.06,0.72795965]
[1746827516467,0.495,640.26,639.06,0.72795965]
[1746827516468,0.2599636,640.25,639.06,0.72795965]
[1746827516968,0.27203121,640.24,639.06,0.72795965]
[1746827517464,0.25993278,640.23,639.06,0.72795965]
[1746827519264,0.25993278,640.34,639.06,0.72795965]
[1746827519462,0.27202164,640.23,639.06,0.72795965]
[1746827519769,0.25993278,640.22,639.06,0.72795965]
[1746827521468,0.701,640.21,639.06,0.72795965]
[1746827521667,0.25993278,640.2,639.06,0.72795965]
[1746827523167,0.701,640.21,639.06,0.72795965]
[1746827523572,0.25993337,640.2,639.06,0.72795965]
[1746827524172,0.701,640.21,639.06,0.72795965]
[1746827524866,0.25993243,640.2,639.06,0.72795965]
[1746827526173,0.701,640.21,639.06,0.72795965]
[1746827526569,0.25993276,640.2,639.06,0.72795965]
[1746827533375,0.701,640.21,639.06,0.72795965]
[1746827534783,0.25995045,640.2,639.06,0.72795965]
[1746827549991,0.25995045,640.33,639.06,0.72795965]
[1746827552698,0.5319487,640.34,639.07,0.28728367]
[1746827552893,0.25995045,640.33,639.09,0.31294496]
[1746827553195,0.25995045,640.33,639.1,0.28728367]
[1746827553498,0.78995045,640.33,639.12,0.31293027]
[1746827553899,0.25995045,640.32,639.13,0.28728367]
[1746827554092,0.25995045,640.32,639.14,0.31292048]
[1746827555699,0.25995045,640.32,639.15,0.58]
[1746827555896,0.25995045,640.32,639.16,0.31291069]
[1746827570108,0.53,640.33,639.16,0.31291069]
[1746827570507,0.25996638,640.32,639.16,0.31291069]
[1746827578713,0.25996638,640.33,639.16,0.31291069]
[1746827579513,0.53195506,640.34,639.16,0.31291069]
[1746827579815,0.25996638,640.33,639.16,0.31291069]
[1746827581521,0.77496638,640.33,639.16,0.31291069]
[1746827581920,0.25996638,640.32,639.16,0.31291069]
[1746827582920,0.515,640.33,639.16,0.31291069]
[1746827583321,0.25994518,640.32,639.16,0.31291069]
[1746827590523,0.25994518,640.32,639.16,0.88291069]
[1746827592729,0.515,640.33,639.16,0.88291069]
[1746827593124,0.25994214,640.32,639.16,0.88291069]
[1746827594031,0.515,640.33,639.16,0.88291069]
[1746827594728,0.259943,640.32,639.16,0.88291069]
[1746827611848,0.259943,640.33,639.16,0.88291069]
[1746827612647,0.53193062,640.34,639.16,0.88291069]
[1746827612850,0.259943,640.32,639.16,0.88291069]
[1746827613450,0.259943,640.33,639.16,0.88291069]
[1746827614245,0.679943,640.33,639.16,0.88291069]
[1746827614550,0.259943,640.32,639.16,0.88291069]
[1746827615148,0.42,640.33,639.16,0.88291069]
[1746827615551,0.25994713,640.32,639.16,0.88291069]
[1746827617953,0.42,640.33,639.16,0.88291069]
[1746827618253,0.25994258,640.32,639.16,0.88291069]
[1746827634060,0.42,640.33,639.16,0.88291069]
[1746827634261,0.25989598,640.32,639.16,0.88291069]
[1746827639670,0.25989598,640.42,639.16,0.88291069]
[1746827642271,0.591,640.41,639.16,0.88291069]
[1746827642873,0.25989598,640.4,639.16,0.88291069]
[1746827646076,0.25989598,640.4,639.17,0.28723831]
[1746827646374,0.25989598,640.4,639.19,0.312896]
[1746827646876,0.25989598,640.4,639.2,0.28723831]
[1746827647072,0.25989598,640.4,639.22,0.31288132]
[1746827647773,0.25989598,640.4,639.23,0.28723831]
[1746827647974,0.25989598,640.4,639.25,0.31286664]
[1746827648374,0.25989598,640.4,639.26,0.363]
[1746827648572,0.25989598,640.4,639.28,0.31285195]
[1746827649674,0.591,640.41,639.28,0.31285195]
[1746827649974,0.25985207,640.4,639.28,0.31285195]
[1746827655379,0.591,640.41,639.28,0.31285195]
[1746827655781,0.25985286,640.4,639.28,0.31285195]
[1746827668092,0.25985286,640.4,639.29,0.28719845]
[1746827668291,0.25985286,640.4,639.31,0.31283727]
[1746827671792,0.25985286,640.4,639.32,0.28719873]
[1746827671998,0.25985286,640.4,639.34,0.31282259]
[1746827672392,0.27190368,640.63,639.34,0.31282259]
[1746827672593,0.25987727,640.62,639.34,0.31282259]
[1746827672796,0.25987727,640.61,639.34,0.31282259]
[1746827673095,0.25987727,640.62,639.34,0.31282259]
[1746827673695,0.25987727,640.61,639.34,0.31282259]
[1746827673998,0.25987727,640.62,639.34,0.31282259]
[1746827674293,0.25987727,640.61,639.34,0.31282259]
[1746827674597,0.25987727,640.62,639.34,0.31282259]
[1746827675498,0.477,640.61,639.34,0.31282259]
[1746827675798,0.73687727,640.61,639.34,0.31282259]
[1746827676100,0.25987727,640.6,639.34,0.31282259]
[1746827677501,0.477,640.61,639.34,0.31282259]
[1746827677904,0.2598822,640.6,639.34,0.31282259]
[1746827689203,0.2598822,640.6,639.35,0.564]
[1746827689407,0.2598822,640.6,639.37,0.31280792]
[1746827691008,0.2598822,640.73,639.37,0.31280792]
[1746827693306,0.2717508,640.74,639.37,0.31280792]
[1746827693706,0.2598822,640.73,639.37,0.31280792]
[1746827694010,0.495,640.72,639.37,0.31280792]
[1746827694611,0.2598822,640.71,639.37,0.31280792]
[1746827700813,0.495,640.72,639.37,0.31280792]
[1746827710023,0.27180493,640.85,639.37,0.31280792]
[1746827710318,0.25996369,640.84,639.37,0.31280792]
[1746827710923,0.27180493,640.85,639.37,0.31280792]
[1746827711319,0.25996407,640.84,639.37,0.31280792]
[1746827711819,0.27180493,640.85,639.37,0.31280792]
[1746827712023,0.25996399,640.83,639.37,0.31280792]
[1746827712218,0.25996399,640.84,639.37,0.31280792]
[1746827713224,0.427,640.83,639.37,0.31280792]
[1746827713621,0.25996398,640.82,639.37,0.31280792]
[1746827715326,0.25996398,640.82,639.38,0.28708054]
[1746827715526,0.25996398,640.82,639.4,0.31279324]
[1746827720330,0.25996398,640.82,639.41,0.28710006]
[1746827720531,0.25996398,640.82,639.43,0.31277856]
[1746827721231,0.427,640.83,639.43,0.31277856]
[1746827721630,0.25995508,640.82,639.43,0.31277856]
[1746827726036,0.25995508,640.82,639.44,0.28709948]
[1746827726335,0.25995508,640.82,639.46,0.31276389]
[1746827726834,0.25995508,640.82,639.47,0.28709948]
[1746827727038,0.25995508,640.82,639.49,0.31274922]
[1746827727839,0.25995508,640.82,639.5,0.28710142]
[1746827728035,0.25995508,640.82,639.52,0.31273455]
[1746827732535,0.27180599,640.81,639.52,0.31273455]
[1746827732734,0.25995508,640.8,639.52,0.31273455]
[1746827735344,0.25995508,640.82,639.52,0.31273455]
[1746827735646,0.27180811,640.79,639.52,0.31273455]
[1746827736041,0.25995508,640.78,639.52,0.31273455]
[1746827739046,0.25995508,640.77,639.53,0.28710863]
[1746827739246,0.25995508,640.77,639.55,0.31271988]
[1746827739444,0.25995508,640.78,639.55,0.31271988]
[1746827739841,0.25995508,640.77,639.55,0.31271988]
[1746827740246,0.25995508,640.78,639.55,0.31271988]
[1746827740543,0.25995508,640.77,639.55,0.31271988]
[1746827740842,0.25995508,640.78,639.55,0.31271988]
[1746827741546,0.25995508,640.77,639.55,0.31271988]
[1746827741746,0.25995508,640.78,639.55,0.31271988]
[1746827742047,0.25995508,640.77,639.55,0.31271988]
[1746827742547,0.25995508,640.78,639.55,0.31271988]
[1746827742747,0.25995508,640.77,639.55,0.31271988]
[1746827743048,0.25995508,640.78,639.55,0.31271988]
[1746827743344,0.25995508,640.77,639.55,0.31271988]
[1746827743647,0.25995508,640.78,639.55,0.31271988]
[1746827744049,0.25995508,640.77,639.55,0.31271988]
[1746827744749,0.27179219,640.79,639.55,0.31271988]
[1746827745050,0.25995508,640.78,639.55,0.31271988]
[1746827745351,0.92295508,640.78,639.55,0.31271988]
[1746827746046,0.25995508,640.77,639.55,0.31271988]
[1746827748454,0.663,640.78,639.55,0.31271988]
[1746827748749,0.25998913,640.77,639.55,0.31271988]
[1746827752758,0.25998913,640.77,639.55,0.74971988]
[1746827763665,0.25998913,641.18,639.55,0.74971988]
[1746827763866,0.31192975,641.17,639.55,0.74971988]
[1746827764363,0.25998913,641.16,639.55,0.74971988]
[1746827764662,0.57192374,641.16,639.55,0.74971988]
[1746827765067,0.25998913,641.15,639.55,0.74971988]
[1746827766866,0.686,641.14,639.55,0.74971988]
[1746827767167,0.25998913,641.13,639.55,0.74971988]
[1746827773672,0.25998913,641.12,639.55,0.74971988]
[1746827773974,0.25998913,641.11,639.55,0.74971988]
[1746827774273,0.25998913,641.1,639.55,0.74971988]
[1746827774568,0.25998913,641.09,639.55,0.74971988]
[1746827775574,0.25998913,641.08,639.55,0.74971988]
[1746827775968,0.25998913,641.07,639.55,0.74971988]
[1746827776275,0.25998913,641.06,639.55,0.74971988]
[1746827776574,0.686,641.14,639.55,0.74971988]
[1746827776575,0.25998913,641.05,639.55,0.74971988]
[1746827776874,0.25998913,641.04,639.55,0.74971988]
[1746827777277,0.25998913,641.03,639.55,0.74971988]
[1746827777673,0.25998913,641.02,639.55,0.74971988]
[1746827777876,0.25998913,641.01,639.55,0.74971988]
[1746827778473,0.25998913,641.0,639.55,0.74971988]
[1746827779179,0.25998913,640.99,639.55,0.74971988]
[1746827779578,0.25998913,640.98,639.55,0.74971988]
[1746827779879,0.25998913,640.97,639.55,0.74971988]
[1746827780180,0.27177202,640.96,639.55,0.74971988]
[1746827780381,0.53176115,640.96,639.55,0.74971988]
[1746827780676,0.25998913,640.95,639.55,0.74971988]
[1746827780878,0.25998913,640.94,639.55,0.74971988]
[1746827781178,0.25998913,640.93,639.55,0.74971988]
[1746827781575,0.25998913,640.92,639.55,0.74971988]
[1746827781881,0.25998913,640.91,639.55,0.74971988]
[1746827782181,0.25998913,640.9,639.55,0.74971988]
[1746827782574,0.25998913,640.89,639.55,0.74971988]
[1746827783082,0.25998913,640.88,639.55,0.74971988]
[1746827783380,0.25998913,640.87,639.55,0.74971988]
[1746827783780,0.25998913,640.86,639.55,0.74971988]
[1746827784080,0.25998913,640.85,639.55,0.74971988]
[1746827784381,0.25998913,640.84,639.55,0.74971988]
[1746827784878,0.25998913,640.83,639.55,0.74971988]
[1746827785477,0.25998913,640.82,639.55,0.74971988]
[1746827786080,0.27178582,640.88,639.55,0.74971988]
[1746827786081,0.25998913,640.87,639.55,0.74971988]
[1746827786586,0.53177389,640.86,639.55,0.74971988]